fUSD/lending_fUSD_20250612
["ID","MTS","AMOUNT","RATE_DAILY","PERIOD"]
[365492709,1749702661147,-740.59,0.00019671,2]
[365492710,1749702661157,-410.0,0.00019671,2]
[365492711,1749702661167,-490.0,0.00019671,2]
[365492712,1749702661176,-657.51,0.00019671,2]
[365492713,1749702661186,-490.0,0.00019671,2]
[365492714,1749702661196,-841.29,0.00019671,2]
[365492715,1749702661206,-628.08,0.00019671,2]
[365492716,1749702661215,-811.43,0.00019671,2]
[365492717,1749702661226,-490.0,0.00019671,2]
[365492718,1749702661235,-810.57,0.00019671,2]
[365492719,1749702661245,-363.96,0.00019671,2]
[365492720,1749702661255,-490.0,0.00019671,2]
[365492721,1749702661264,-1359.68,0.00019671,2]
[365492722,1749702661274,-1171.14,0.00019671,2]
[365492723,1749702661283,-750.98,0.00019671,2]
[365492724,1749702661293,-490.0,0.00019671,2]
[365492725,1749702661303,-658.74,0.00019671,2]
[365492726,1749702661312,-1039.04,0.00019671,2]
[365492727,1749702661322,-794.7,0.00019671,2]
[365492728,1749702661331,-490.0,0.00019671,2]
[365492729,1749702661342,-490.0,0.00019671,2]
[365492730,1749702661352,-543.52,0.00019671,2]
[365492731,1749702661362,-490.0,0.00019671,2]
[365492732,1749702661371,-837.26,0.00019671,2]
[365492733,1749702661380,-490.0,0.00019671,2]
[365492734,1749702661390,-1672.24,0.00019671,2]
[365492735,1749702661399,-490.0,0.00019671,2]
[365492736,1749702661409,-1075.73,0.00019671,2]
[365492737,1749702661419,-770.26,0.00019671,2]
[365492738,1749702661429,-820.91,0.00019671,2]
[365492739,1749702661438,-490.0,0.00019671,2]
[365492740,1749702661448,-490.0,0.00019671,2]
[365492741,1749702661461,-400.56855349,0.00019671,2]
[365492742,1749702661471,-1195.75,0.00019671,2]
[365492743,1749702661480,-490.0,0.00019671,2]
[365492744,1749702661490,-491.32,0.00019671,2]
[365492745,1749702661501,-490.0,0.00019671,2]
[365492746,1749702661511,-919.96,0.00019671,2]
[365492747,1749702661520,-1006.0,0.00019671,2]
[365492748,1749702661530,-490.0,0.00019671,2]
[365492749,1749702661541,-490.0,0.00019671,2]
[365492750,1749702661551,-899.43,0.00019671,2]
[365492751,1749702661561,-849.82,0.00019671,2]
[365492752,1749702661571,-490.0,0.00019671,2]
[365492753,1749702661581,-1204.22,0.00019671,2]
[365492754,1749702661592,-607.93,0.00019671,2]
[365492755,1749702661602,-719.91,0.00019671,2]
[365492756,1749702661611,-490.0,0.00019671,2]
[365492757,1749702661621,-490.0,0.00019671,2]
[365492758,1749702661632,-644.23,0.00019671,2]
[365492759,1749702661641,-470.0,0.00019671,2]
[365492760,1749702661651,-490.32,0.00019671,2]
[365492761,1749702661661,-805.29,0.00019671,2]
[365492762,1749702661671,-820.3,0.00019671,2]
[365492763,1749702661681,-490.0,0.00019671,2]
[365492764,1749702661692,-714.55,0.00019671,2]
[365492765,1749702661703,-490.0,0.00019671,2]
[365492766,1749702661713,-1325.01,0.00019671,2]
[365492767,1749702661723,-490.0,0.00019671,2]
[365492768,1749702661733,-951.82,0.00019671,2]
[365492769,1749702661743,-727.25,0.00019671,2]
[365492770,1749702661752,-633.83223041,0.00019671,2]
[365492771,1749702661762,-1409.86,0.00019671,2]
[365492772,1749702661772,-594.56738208,0.00019671,2]
[365492773,1749702661782,-490.0,0.00019671,2]
[365492774,1749702661792,-474.7684279,0.00019671,2]
[365492775,1749702661802,-581.88,0.00019671,2]
[365492776,1749702661812,-1108.49,0.00019671,2]
[365492777,1749702661821,-490.0,0.00019671,2]
[365492778,1749702661831,-949.09,0.00019671,2]
[365492779,1749702661842,-688.44,0.00019671,2]
[365492780,1749702661852,-1191.23,0.00019671,2]
[365492781,1749702662108,-490.0,0.00019671,2]
[365492782,1749702662137,-633.09,0.00019671,2]
[365492783,1749702662148,-490.0,0.00019671,2]
[365492784,1749702662159,-1166.82,0.00019671,2]
[365492785,1749702662168,-490.0,0.00019671,2]
[365492786,1749702662182,-766.93,0.00019671,2]
[365492787,1749702662192,-645.27,0.00019671,2]
[365492788,1749702662202,-490.0,0.00019671,2]
[365492789,1749702662212,-937.25,0.00019671,2]
[365492790,1749702662223,-731.85,0.00019671,2]
[365492791,1749702662233,-1948.56,0.00019671,2]
[365492792,1749702662243,-490.0,0.00019671,2]
[365492793,1749702662254,-490.0,0.00019671,2]
[365492794,1749702662264,-490.0,0.00019671,2]
[365492795,1749702662275,-1003.02,0.00019671,2]
[365492796,1749702662285,-490.0,0.00019671,2]
[365492797,1749702662295,-994.9,0.00019671,2]
[365492798,1749702662305,-490.0,0.00019671,2]
[365492799,1749702662315,-899.98,0.00019671,2]
[365492800,1749702662325,-490.0,0.00019671,2]
[365492801,1749702662336,-906.08,0.00019671,2]
[365492802,1749702662345,-973.6,0.00019671,2]
[365492803,1749702662355,-784.65,0.00019671,2]
[365492804,1749702662365,-1000.0,0.00019671,2]
[365492805,1749702662376,-1183.13,0.00019671,2]
[365492806,1749702662386,-719.72,0.00019671,2]
[365492807,1749702662397,-1076.36,0.00019671,2]
[365492808,1749702662407,-720.14,0.00019671,2]
[365492809,1749702662417,-894.78,0.00019671,2]
[365492810,1749702662428,-574.54,0.00019671,2]
[365492811,1749702662438,-680.51,0.00019671,2]
[365492812,1749702662449,-1179.04,0.00019671,2]
[365492813,1749702662464,-490.0,0.00019671,2]
[365492814,1749702662475,-490.0,0.00019671,2]
[365492815,1749702662486,-827.86,0.00019671,2]
[365492816,1749702662496,-786.16,0.00019671,2]
[365492817,1749702662507,-470.0,0.00019671,2]
[365492818,1749702662517,-490.0,0.00019671,2]
[365492819,1749702662527,-657.56,0.00019671,2]
[365492820,1749702662539,-999.76,0.00019671,2]
[365492821,1749702662550,-1409.61,0.00019671,2]
[365492822,1749702662560,-660.05,0.00019671,2]
[365492823,1749702662571,-490.0,0.00019671,2]
[365492824,1749702662582,-599.66892468,0.00019671,2]
[365492825,1749702662593,-1094.89,0.00019671,2]
[365492826,1749702662603,-490.0,0.00019671,2]
[365492827,1749702662613,-490.0,0.00019671,2]
[365492828,1749702662623,-5190.44,0.00019671,2]
[365492829,1749702662633,-1134.21,0.00019671,2]
[365492830,1749702662643,-890.27,0.00019671,2]
[365492831,1749702662652,-1323.58,0.00019671,2]
[365492832,1749702662662,-490.0,0.00019671,2]
[365492833,1749702662672,-1025.07,0.00019671,2]
[365492834,1749702662682,-3147.0,0.00019671,2]
[365492835,1749702662692,-1004.8,0.00019671,2]
[365492836,1749702662702,-753.14,0.00019671,2]
[365492837,1749702662712,-570.78,0.00019671,2]
[365492838,1749702662722,-1529.81,0.00019671,2]
[365492839,1749702662732,-959.4,0.00019671,2]
[365492840,1749702662742,-3640.85,0.00019671,2]
[365492841,1749702662752,-800.14,0.00019671,2]
[365492842,1749702662762,-490.0,0.00019671,2]
[365492843,1749702662773,-558.83648745,0.00019671,2]
[365492844,1749702662784,-1382.1,0.00019671,2]
[365492845,1749702662794,-710.62,0.00019671,2]
[365492846,1749702662804,-1065.77,0.00019671,2]
[365492847,1749702662814,-4114.47,0.00019671,2]
[365492848,1749702662824,-490.0,0.00019671,2]
[365492849,1749702662835,-1783.13,0.00019671,2]
[365492850,1749702662845,-2514.95,0.00019671,2]
[365492851,1749702662859,-670.79,0.00019671,2]
[365492852,1749702662871,-490.0,0.00019671,2]
[365492853,1749702662882,-490.0,0.00019671,2]
[365492854,1749702662892,-977.3,0.00019671,2]
[365492855,1749702662902,-1959.36,0.00019671,2]
[365492856,1749702662912,-966.22,0.00019671,2]
[365492857,1749702662921,-2861.3,0.00019671,2]
[365492858,1749702662930,-637.9,0.00019671,2]
[365492859,1749702662940,-480.0,0.00019671,2]
[365492860,1749702662949,-1662.84,0.00019671,2]
[365492861,1749702662958,-11972.34,0.00019671,2]
[365492862,1749702662968,-901.48,0.00019671,2]
[365492863,1749702662977,-490.0,0.00019671,2]
[365492864,1749702662986,-611.9,0.00019671,2]
[365492865,1749702662996,-4335.46,0.00019671,2]
[365492866,1749702663005,-811.88,0.00019671,2]
[365492867,1749702663015,-991.82,0.00019671,2]
[365492868,1749702663025,-631.05,0.00019671,2]
[365492869,1749702663035,-490.0,0.00019671,2]
[365492870,1749702663046,-1891.03,0.00019671,2]
[365492871,1749702663056,-1098.68,0.00019671,2]
[365492872,1749702663066,-490.0,0.00019671,2]
[365492873,1749702663076,-738.74,0.00019671,2]
[365492874,1749702663086,-1274.36,0.00019671,2]
[365492875,1749702663096,-2437.21,0.00019671,2]
[365492876,1749702663106,-1111.08,0.00019671,2]
[365492877,1749702663116,-990.16,0.00019671,2]
[365492878,1749702663126,-490.0,0.00019671,2]
[365492879,1749702663136,-2031.65,0.00019671,2]
[365492880,1749702663146,-1229.94,0.00019671,2]
[365492881,1749702663156,-490.0,0.00019671,2]
[365492882,1749702663166,-2105.63,0.00019671,2]
[365492883,1749702663176,-1064.64,0.00019671,2]
[365492884,1749702663186,-490.0,0.00019671,2]
[365492885,1749702663196,-490.0,0.00019671,2]
[365492886,1749702663205,-490.0,0.00019671,2]
[365492887,1749702663216,-1416.9,0.00019671,2]
[365492888,1749702663226,-490.0,0.00019671,2]
[365492889,1749702663236,-2296.11,0.00019671,2]
[365492890,1749702663251,-1933.75,0.00019671,2]
[365492891,1749702663262,-616.37,0.00019671,2]
[365492892,1749702663272,-490.0,0.00019671,2]
[365492893,1749702663282,-764.28,0.00019671,2]
[365492894,1749702663292,-490.0,0.00019671,2]
[365492895,1749702663301,-1143.34,0.00019671,2]
[365492896,1749702663311,-490.0,0.00019671,2]
[365492897,1749702663322,-606.65,0.00019671,2]
[365492898,1749702663332,-152.915441,0.00019671,2]
[365492899,1749702663343,-1175.84,0.00019671,2]
[365492900,1749702663353,-1822.26,0.00019671,2]
[365492901,1749702663362,-512.88,0.00019671,2]
[365492902,1749702663372,-1033.7,0.00019671,2]
[365492903,1749702663382,-571.23,0.00019671,2]
[365492904,1749702663391,-490.0,0.00019671,2]
[365492905,1749702663401,-4950.05,0.00019671,2]
[365492906,1749702663410,-763.18,0.00019671,2]
[365492907,1749702663420,-490.0,0.00019671,2]
[365492908,1749702663431,-861.74,0.00019671,2]
[365492909,1749702663440,-490.0,0.00019671,2]
[365492910,1749702663450,-490.0,0.00019671,2]
[365492911,1749702663463,-730.35,0.00019671,2]
[365492912,1749702663473,-490.0,0.00019671,2]
[365492913,1749702663483,-3105.41,0.00019671,2]
[365492914,1749702663493,-1252.17,0.00019671,2]
[365492915,1749702663502,-1426.01,0.00019671,2]
[365492916,1749702663512,-963.38,0.00019671,2]
[365492917,1749702663522,-870.69,0.00019671,2]
[365492918,1749702663533,-490.0,0.00019671,2]
[365492919,1749702663543,-2092.74,0.00019671,2]
[365492920,1749702663553,-490.0,0.00019671,2]
[365492921,1749702663562,-1881.0,0.00019671,2]
[365492922,1749702663573,-490.0,0.00019671,2]
[365492923,1749702663584,-3522.78,0.00019671,2]
[365492924,1749702663593,-626.63,0.00019671,2]
[365492925,1749702663603,-490.0,0.00019671,2]
[365492926,1749702663613,-490.0,0.00019671,2]
[365492927,1749702663623,-948.36,0.00019671,2]
[365492928,1749702663633,-490.0,0.00019671,2]
[365492929,1749702663643,-643.53,0.00019671,2]
[365492930,1749702663653,-584.57,0.00019671,2]
[365492931,1749702663663,-700.07,0.00019671,2]
[365492932,1749702663672,-490.0,0.00019671,2]
[365492933,1749702663682,-490.0,0.00019671,2]
[365492934,1749702663691,-786.06,0.00019671,2]
[365492935,1749702663701,-613.83,0.00019671,2]
[365492936,1749702663710,-490.0,0.00019671,2]
[365492937,1749702663719,-490.0,0.00019671,2]
[365492938,1749702663729,-490.0,0.00019671,2]
[365492939,1749702663739,-635.02,0.00019671,2]
[365492940,1749702663748,-3330.47,0.00019671,2]
[365492941,1749702663758,-4387.22,0.00019671,2]
[365492942,1749702663767,-1465.52,0.00019671,2]
[365492943,1749702663776,-831.73,0.00019671,2]
[365492944,1749702663787,-490.0,0.00019671,2]
[365492945,1749702663796,-1758.95,0.00019671,2]
[365492946,1749702663806,-490.0,0.00019671,2]
[365492947,1749702663815,-1171.34,0.00019671,2]
[365492948,1749702663825,-478.03590363,0.00019671,2]
[365492949,1749702663835,-760.84,0.00019671,2]
[365492950,1749702663845,-1940.94,0.00019671,2]
[365492951,1749702663854,-751.87,0.00019671,2]
[365492952,1749702663864,-1613.78,0.00019671,2]
[365492953,1749702663874,-490.0,0.00019671,2]
[365492954,1749702663884,-1505.9,0.00019671,2]
[365492955,1749702663894,-839.12,0.00019671,2]
[365492956,1749702663904,-3167.56,0.00019671,2]
[365492957,1749702663913,-490.0,0.00019671,2]
[365492958,1749702663923,-2152.91,0.00019671,2]
[365492959,1749702663933,-2836.63,0.00019671,2]
[365492960,1749702663943,-635.65,0.00019671,2]
[365492961,1749702663952,-888.98,0.00019671,2]
[365492962,1749702663962,-3709.77,0.00019671,2]
[365492963,1749702663972,-490.0,0.00019671,2]
[365492964,1749702663981,-13495.99,0.00019671,2]
[365492965,1749702663991,-490.0,0.00019671,2]
[365492966,1749702664000,-2242.88,0.00019671,2]
[365492967,1749702664010,-982.75,0.00019671,2]
[365492968,1749702664020,-490.0,0.00019671,2]
[365492969,1749702664030,-514.98,0.00019671,2]
[365492970,1749702664040,-3250.61,0.00019671,2]
[365492971,1749702664050,-2155.95,0.00019671,2]
[365492972,1749702664061,-1049.01,0.00019671,2]
[365492973,1749702664072,-1796.64,0.00019671,2]
[365492974,1749702664082,-2136.54,0.00019671,2]
[365492975,1749702664093,-505.74,0.00019671,2]
[365492976,1749702664103,-490.0,0.00019671,2]
[365492977,1749702664113,-1496.3,0.00019671,2]
[365492978,1749702664122,-584.87,0.00019671,2]
[365492979,1749702664132,-1625.82,0.00019671,2]
[365492980,1749702664142,-783.21,0.00019671,2]
[365492981,1749702664151,-4240.3,0.00019671,2]
[365492982,1749702664161,-3500.97,0.00019671,2]
[365492983,1749702664172,-1371.58,0.00019671,2]
[365492984,1749702664182,-647.48,0.00019671,2]
[365492985,1749702664191,-195.32605512,0.00019671,2]
[365492986,1749702664201,-490.0,0.00019671,2]
[365492987,1749702664211,-490.0,0.00019671,2]
[365492988,1749702664220,-755.25,0.00019671,2]
[365492989,1749702664230,-1323.91,0.00019671,2]
[365492990,1749702664240,-652.5,0.00019671,2]
[365492991,1749702664252,-9214.32,0.00019671,2]
[365492992,1749702664262,-490.0,0.00019671,2]
[365492993,1749702664273,-614.91,0.00019671,2]
[365492994,1749702664283,-756.53,0.00019671,2]
[365492995,1749702664292,-581.79,0.00019671,2]
[365492996,1749702664302,-490.0,0.00019671,2]
[365492997,1749702664312,-1780.52,0.00019671,2]
[365492998,1749702664321,-573.22,0.00019671,2]
[365492999,1749702664331,-490.0,0.00019671,2]
[365493000,1749702664343,-753.27,0.00019671,2]
[365493001,1749702664354,-903.71,0.00019671,2]
[365493002,1749702664364,-2066.14,0.00019671,2]
[365493003,1749702664374,-598.48,0.00019671,2]
[365493004,1749702664383,-556.08,0.00019671,2]
[365493005,1749702664393,-1029.46,0.00019671,2]
[365493006,1749702664403,-338.14048819,0.00019671,2]
[365493007,1749702664412,-490.0,0.00019671,2]
[365493008,1749702664422,-540.9,0.00019671,2]
[365493009,1749702664431,-490.0,0.00019671,2]
[365493010,1749702664441,-1103.15,0.00019671,2]
[365493011,1749702664453,-802.39,0.00019671,2]
[365493012,1749702664463,-2785.99,0.00019671,2]
[365493013,1749702664474,-490.0,0.00019671,2]
[365493014,1749702664484,-1209.15,0.00019671,2]
[365493015,1749702664495,-522.19,0.00019671,2]
[365493016,1749702664505,-490.0,0.00019671,2]
[365493017,1749702664514,-490.0,0.00019671,2]
[365493018,1749702664524,-1160.67,0.00019671,2]
[365493019,1749702664535,-490.0,0.00019671,2]
[365493020,1749702664545,-843.72,0.00019671,2]
[365493021,1749702664556,-2238.74,0.00019671,2]
[365493022,1749702664565,-5400.12,0.00019671,2]
[365493023,1749702664575,-843.03,0.00019671,2]
[365493024,1749702664585,-248.3229534,0.00019693,2]
[365493025,1749702664595,-1461.354,0.00019699,2]
[365493026,1749702664605,-420.0,0.00019711,2]
[365493027,1749702664615,-930.10614962,0.00019716,2]
[365493028,1749702664698,-1727.15114208,0.00019717,2]
[365493029,1749702664707,-1000.0,0.00019721,2]
[365493030,1749702664717,-500.0,0.00019721,2]
[365493031,1749702664726,-1000.0,0.00019721,2]
[365493032,1749702664735,-510.48800906,0.00019721,2]
[365493033,1749702664744,-1000.0,0.00019721,2]
[365493034,1749702664753,-500.0,0.00019721,2]
[365493035,1749702664763,-1000.0,0.00019721,2]
[365493036,1749702664772,-151.0,0.00019726,2]
[365493037,1749702664781,-1680.0,0.00019735,2]
[365493038,1749702664791,-503.3133828,0.00019758,2]
[365493039,1749702664800,-248.3229534,0.00019762,2]
[365493040,1749702664809,-500.0,0.00019783,2]
[365493041,1749702664818,-156.587,0.00019792,2]
[365493042,1749702664827,-215.0738,0.00019792,2]
[365493043,1749702664838,-1000.0,0.000198,2]
[365493044,1749702664847,-7100.85239996,0.000198,2]
[365493045,1749702664857,-250.0,0.000198,2]
[365493046,1749702664866,-300.0,0.000198,2]
[365493047,1749702664875,-250.0,0.000198,2]
[365493048,1749702664885,-300.0,0.000198,2]
[365493049,1749702664894,-503.3133828,0.00019801,2]
[365493050,1749702664903,-250.0,0.00019804,2]
[365493051,1749702664913,-300.0,0.00019804,2]
[365493052,1749702664922,-930.10614962,0.00019808,2]
[365493053,1749702664931,-1727.15114208,0.00019809,2]
[365493054,1749702664940,-500.0,0.00019824,2]
[365493055,1749702664950,-248.3229534,0.00019831,2]
[365493056,1749702664959,-574.859282,0.00019834,2]
[365493057,1749702664969,-574.859282,0.00019834,2]
[365493058,1749702664978,-500.0,0.00019834,2]
[365493059,1749702664987,-500.0,0.00019834,2]
[365493060,1749702664996,-300.0,0.00019834,2]
[365493061,1749702665006,-500.0,0.00019834,2]
[365493062,1749702665016,-1029.84,0.00019834,2]
[365493063,1749702665025,-307.36126504,0.00019834,2]
[365493064,1749702665035,-151.0,0.00019835,2]
[365493065,1749702665044,-151.0,0.00019835,2]
[365493066,1749702665054,-151.0,0.00019835,2]
[365493067,1749702665063,-151.0,0.00019835,2]
[365493068,1749702665073,-490.0,0.00019835,2]
[365493069,1749702665082,-1818.611203,0.00019835,2]
[365493070,1749702665092,-2390.840098,0.00019835,2]
[365493071,1749702665101,-1291.69,0.00019835,2]
[365493072,1749702665111,-556.13708457,0.00019835,2]
[365493073,1749702665120,-389.67209933,0.00019835,2]
[365493074,1749702665130,-490.0,0.00019835,2]
[365493075,1749702665139,-204.28770541,0.00019835,2]
[365493076,1749702665148,-639.17,0.00019835,2]
[365493077,1749702665158,-177.25770901,0.00019835,2]
[365493078,1749702665167,-490.0,0.00019835,2]
[365493079,1749702665176,-383.52907605,0.00019835,2]
[365493080,1749702665185,-477.87399047,0.00019835,2]
[365493081,1749702665194,-490.0,0.00019835,2]
[365493082,1749702665203,-740.59,0.00019835,2]
[365493083,1749702665212,-207.77562674,0.00019835,2]
[365493084,1749702665222,-657.51,0.00019835,2]
[365493085,1749702665232,-490.0,0.00019835,2]
[365493086,1749702665241,-841.29,0.00019835,2]
[365493087,1749702665251,-628.08,0.00019835,2]
[365493088,1749702665260,-811.43,0.00019835,2]
[365493089,1749702665269,-490.0,0.00019835,2]
[365493090,1749702665279,-810.57,0.00019835,2]
[365493091,1749702665289,-151.0,0.00019835,2]
[365493092,1749702665299,-151.0,0.00019835,2]
[365493093,1749702665309,-335.56235672,0.00019835,2]
[365493094,1749702665318,-1359.68,0.00019835,2]
[365493095,1749702665327,-1171.14,0.00019835,2]
[365493096,1749702665339,-750.98,0.00019835,2]
[365493097,1749702665348,-151.0,0.00019835,2]
[365493098,1749702665357,-490.0,0.00019835,2]
[365493099,1749702665366,-151.0,0.00019835,2]
[365493100,1749702665375,-658.74,0.00019835,2]
[365493101,1749702665384,-1039.04,0.00019835,2]
[365493102,1749702665393,-794.7,0.00019835,2]
[365493103,1749702665402,-490.0,0.00019835,2]
[365493104,1749702665411,-193.30365415,0.00019835,2]
[365493105,1749702665420,-151.0,0.00019835,2]
[365493106,1749702665429,-543.52,0.00019835,2]
[365493107,1749702665438,-417.59164225,0.00019835,2]
[365493108,1749702665447,-837.26,0.00019835,2]
[365493109,1749702665459,-490.0,0.00019835,2]
[365493110,1749702665468,-1672.24,0.00019835,2]
[365493111,1749702665478,-490.0,0.00019835,2]
[365493112,1749702665487,-151.0,0.00019835,2]
[365493113,1749702665498,-1075.73,0.00019835,2]
[365493114,1749702665507,-770.26,0.00019835,2]
[365493115,1749702665516,-820.91,0.00019835,2]
[365493116,1749702665525,-490.0,0.00019835,2]
[365493117,1749702665535,-397.437492,0.00019835,2]
[365493118,1749702665544,-397.437492,0.00019835,2]
[365493119,1749702665553,-490.0,0.00019835,2]
[365493120,1749702665562,-1195.75,0.00019835,2]
[365493121,1749702665571,-490.0,0.00019835,2]
[365493122,1749702665579,-490.0,0.00019835,2]
[365493123,1749702665590,-919.96,0.00019835,2]
[365493124,1749702665599,-1006.0,0.00019835,2]
[365493125,1749702665608,-189.65858297,0.00019835,2]
[365493126,1749702665617,-151.0,0.00019835,2]
[365493127,1749702665626,-490.0,0.00019835,2]
[365493128,1749702665635,-899.43,0.00019835,2]
[365493129,1749702665644,-849.82,0.00019835,2]
[365493130,1749702665653,-160.376298,0.00019835,2]
[365493131,1749702665662,-160.376298,0.00019835,2]
[365493132,1749702665671,-151.0,0.00019835,2]
[365493133,1749702665680,-490.0,0.00019835,2]
[365493134,1749702665689,-151.0,0.00019835,2]
[365493135,1749702665699,-1204.22,0.00019835,2]
[365493136,1749702665708,-151.0,0.00019835,2]
[365493137,1749702665717,-607.93,0.00019835,2]
[365493138,1749702665739,-719.91,0.00019835,2]
[365493139,1749702665750,-490.0,0.00019835,2]
[365493140,1749702665760,-151.0,0.00019835,2]
[365493141,1749702665770,-564.85877841,0.00019835,2]
[365493142,1749702665780,-644.23,0.00019835,2]
[365493143,1749702665790,-490.32,0.00019835,2]
[365493144,1749702665800,-805.29,0.00019835,2]
[365493145,1749702665809,-820.3,0.00019835,2]
[365493146,1749702665819,-490.0,0.00019835,2]
[365493147,1749702665829,-714.55,0.00019835,2]
[365493148,1749702665840,-490.0,0.00019835,2]
[365493149,1749702665849,-1325.01,0.00019835,2]
[365493150,1749702665859,-490.0,0.00019835,2]
[365493151,1749702665868,-951.82,0.00019835,2]
[365493152,1749702665878,-727.25,0.00019835,2]
[365493153,1749702665888,-1409.86,0.00019835,2]
[365493154,1749702665898,-202.25329629,0.00019835,2]
[365493155,1749702665907,-581.88,0.00019835,2]
[365493156,1749702665917,-1108.49,0.00019835,2]
[365493157,1749702665927,-490.0,0.00019835,2]
[365493158,1749702665936,-949.09,0.00019835,2]
[365493159,1749702665946,-688.44,0.00019835,2]
[365493160,1749702665955,-1191.23,0.00019835,2]
[365493161,1749702665965,-490.0,0.00019835,2]
[365493162,1749702665974,-633.09,0.00019835,2]
[365493163,1749702665984,-490.0,0.00019835,2]
[365493164,1749702665994,-1166.82,0.00019835,2]
[365493165,1749702666004,-490.0,0.00019835,2]
[365493166,1749702666013,-766.93,0.00019835,2]
[365493167,1749702666023,-174.551043,0.00019835,2]
[365493168,1749702666034,-645.27,0.00019835,2]
[365493169,1749702666043,-151.0,0.00019835,2]
[365493170,1749702666054,-174.551043,0.00019835,2]
[365493171,1749702666063,-610.42003677,0.00019835,2]
[365493172,1749702666074,-937.25,0.00019835,2]
[365493173,1749702666084,-731.85,0.00019835,2]
[365493174,1749702666096,-151.0,0.00019835,2]
[365493175,1749702666106,-1948.56,0.00019835,2]
[365493176,1749702666116,-151.0,0.00019835,2]
[365493177,1749702666125,-501.98875904,0.00019835,2]
[365493178,1749702666135,-210.22795,0.00019835,2]
[365493179,1749702666145,-471.65358786,0.00019835,2]
[365493180,1749702666155,-490.0,0.00019835,2]
[365493181,1749702666165,-1003.02,0.00019835,2]
[365493182,1749702666182,-558.02,0.00019835,2]
[365493183,1749702666192,-544.848958,0.00019835,2]
[365493184,1749702666203,-151.0,0.00019835,2]
[365493185,1749702666213,-994.9,0.00019835,2]
[365493186,1749702666223,-544.848958,0.00019835,2]
[365493187,1749702666233,-490.0,0.00019835,2]
[365493188,1749702666243,-899.98,0.00019835,2]
[365493189,1749702666253,-490.0,0.00019835,2]
[365493190,1749702666264,-906.08,0.00019835,2]
[365493191,1749702666274,-973.6,0.00019835,2]
[365493192,1749702666284,-784.65,0.00019835,2]
[365493193,1749702666294,-200.687772,0.00019835,2]
[365493194,1749702666304,-200.687772,0.00019835,2]
[365493195,1749702666314,-260.01769715,0.00019835,2]
[365493196,1749702666325,-1183.13,0.00019835,2]
[365493197,1749702666337,-151.0,0.00019835,2]
[365493198,1749702666347,-719.72,0.00019835,2]
[365493199,1749702666357,-1076.36,0.00019835,2]
[365493200,1749702666367,-720.14,0.00019835,2]
[365493201,1749702666378,-894.78,0.00019835,2]
[365493202,1749702666387,-574.54,0.00019835,2]
[365493203,1749702666397,-680.51,0.00019835,2]
[365493204,1749702666407,-1179.04,0.00019835,2]
[365493205,1749702666416,-490.0,0.00019835,2]
[365493206,1749702666426,-490.0,0.00019835,2]
[365493207,1749702666435,-206.44311,0.00019835,2]
[365493208,1749702666445,-827.86,0.00019835,2]